bitfinex/quotes_SOLUSD_20240621
["timestamp","ask_amount","ask_price","bid_price","bid_amount"]
[1718991787696,6.1447,130.2,130.12,6.1477]
[1718991787863,6.1713,130.21,130.13,45.34]
[1718991788054,6.1449,130.19,130.13,45.34]
[1718991788271,6.1449,130.19,130.14,45.0]
[1718991788489,6.1444,130.2,130.13,0.34]
[1718991788963,6.1713,130.21,130.1,25.64]
[1718991789171,21.5312,130.21,130.09,23.14]
[1718991789485,6.1452,130.19,130.11,6.1483]
[1718991789673,21.5312,130.21,130.12,45.34]
[1718991789983,6.1713,130.21,130.12,23.31]
[1718991790260,6.1448,130.2,130.13,68.31]
[1718991790351,20.0,130.2,130.14,0.17]
[1718991790686,20.0,130.21,130.14,23.31]
[1718991790881,20.0,130.21,130.16,23.14]
[1718991791079,0.8416462,130.22,130.17,23.48]
[1718991791258,0.8416462,130.22,130.18,45.0]
[1718991791476,0.8416462,130.22,130.18,45.17]
[1718991791697,0.8416462,130.22,130.19,0.17]
[1718991791975,0.8416462,130.22,130.19,0.34]
[1718991792371,0.8416462,130.22,130.19,6.4848]
[1718991792570,0.8416462,130.22,130.2,45.0]
[1718991792765,0.8416462,130.22,130.21,0.34]
[1718991793271,0.8416462,130.22,130.21,6.1439]
[1718991793481,0.8416462,130.22,130.21,71.4839]
[1718991793872,0.8416462,130.22,130.21,45.17]
[1718991794083,0.8416462,130.22,130.2,45.0]
[1718991794404,0.8416462,130.22,130.19,45.34]
[1718991794997,0.8416462,130.22,130.19,51.4847]
[1718991795278,0.8416462,130.22,130.21,6.1439]
[1718991795462,0.8416462,130.22,130.21,51.4839]
[1718991795662,0.8416462,130.22,130.21,45.34]
[1718991796061,0.8416462,130.22,130.21,45.0]
[1718991796289,0.8416462,130.22,130.2,48.06558037]
[1718991797188,0.8416462,130.22,130.21,3.40534494]
[1718991797384,0.8416462,130.22,130.21,48.40534494]
[1718991797591,0.8416462,130.22,130.21,54.54924494]
[1718991799668,0.8416462,130.22,130.21,3.06534494]
[1718991799880,0.8416462,130.22,130.19,6.1447]
[1718991800085,0.8416462,130.22,130.19,9.21041584]
[1718991800488,0.8416462,130.22,130.19,3.06581584]
[1718991800674,0.8416462,130.22,130.05,11.54076725]
[1718991800965,6.1456,130.18,130.11,6.1484]
[1718991801164,6.9852462,130.22,130.09,22.6]
[1718991801370,20.0,130.21,130.14,6.1471]
[1718991801589,20.0,130.21,130.15,6.1464]
[1718991801802,20.0,130.21,130.16,29.2859]
[1718991802006,0.8416462,130.22,130.16,29.2859]
[1718991802407,0.8416462,130.22,130.16,23.14]
[1718991802685,0.8416462,130.22,130.1,23.14]
[1718991803005,0.8416462,130.22,130.13,23.14]
[1718991803293,6.1446,130.2,130.14,45.17]
[1718991803489,15.3598,130.21,130.09,22.6]
[1718991803668,0.8416462,130.22,130.15,6.1465]
[1718991803669,6.9852462,130.22,130.15,6.1465]
[1718991803869,20.0,130.21,130.15,6.1465]
[1718991804377,26.144,130.21,130.13,29.2873]
[1718991804886,20.0,130.21,130.14,68.31]
[1718991805212,6.9851462,130.22,130.15,29.4567]
[1718991805404,26.1439,130.21,130.16,45.17]
[1718991805606,0.8416462,130.22,130.16,45.17]
[1718991805902,6.1447,130.2,130.12,29.2877]
[1718991806068,26.1448,130.19,130.13,45.17]
[1718991806263,26.1448,130.19,130.09,22.6]
[1718991806264,6.1458,130.17,130.1,6.149]
[1718991806469,15.3598,130.21,130.09,22.6]
[1718991806692,6.1466,130.16,130.09,22.6]
[1718991806868,6.1466,130.16,130.08,29.2897]
[1718991807067,26.1468,130.15,130.08,29.2897]
[1718991807268,20.0,130.15,130.09,29.2895]
[1718991807468,26.1469,130.15,130.08,6.15]
[1718991807882,20.0,130.15,130.09,6.1495]
[1718991808188,20.0,130.15,130.1,23.14]
[1718991808412,20.0,130.15,130.09,6.1494]
[1718991808567,26.1467,130.15,130.08,6.1499]
[1718991808766,20.0,130.15,130.05,22.4293]
[1718991808987,6.1474,130.14,130.07,6.1505]
[1718991809193,20.0,130.13,130.05,22.4293]
[1718991809504,6.1484,130.12,130.05,6.1511]
[1718991809671,20.0,130.11,130.05,6.1511]
[1718991810102,20.0,130.11,130.05,29.2911]
[1718991810684,26.1487,130.11,130.04,6.1517]
[1718991810878,6.1501,130.08,130.01,27.5342]
[1718991811284,6.1506,130.07,130.0,6.1537]
[1718991811480,35.3726,130.11,129.98,50.1765]
[1718991811769,6.1515,130.05,129.96,20.0]
[1718991811973,6.1512,130.06,129.99,6.1542]
[1718991812175,20.0,130.05,130.0,29.2938]
[1718991812406,6.4547,130.08,130.02,23.14]
[1718991812575,20.0,130.07,130.02,23.14]
[1718991812775,21.7844,130.12,130.04,23.14]
[1718991812776,6.4134,130.12,130.04,23.14]
[1718991812989,26.1487,130.11,130.04,29.2915]
[1718991813194,26.1487,130.11,130.01,16.5457]
[1718991813195,20.0,130.11,130.06,29.2909]
[1718991813517,20.0,130.11,130.07,45.34]
[1718991813807,12.5616,130.12,130.07,68.48]
[1718991814019,12.5616,130.12,130.07,45.34]
[1718991814182,6.4134,130.12,130.07,0.17]
[1718991814382,6.4134,130.12,130.06,45.0]
[1718991814383,6.1508,130.07,129.98,16.4036]
[1718991814679,6.4134,130.12,129.99,100.0]
[1718991814680,12.5619,130.12,129.99,100.0]
[1718991814891,12.5619,130.12,130.05,6.1511]
[1718991814892,12.5618,130.12,130.05,6.1511]
[1718991815076,12.5618,130.12,130.05,29.2911]
[1718991815494,12.5618,130.12,130.02,15.3821]
[1718991815495,6.4134,130.12,130.07,23.14]
[1718991815692,6.1478,130.13,130.08,45.34]
[1718991815901,20.0,130.12,130.08,45.34]
[1718991816196,26.1486,130.12,130.07,0.17]
[1718991816418,26.1486,130.12,130.06,45.34]
[1718991816975,20.0,130.12,129.98,62.5625]
[1718991817175,6.1497,130.09,130.02,29.2926]
[1718991817374,20.0,130.08,130.03,0.17]
[1718991817783,20.0,130.08,129.98,51.1936]
[1718991818107,24.05893833,130.17,129.98,16.4036]
[1718991818108,6.1521,130.04,129.98,16.4036]
[1718991818976,6.1521,130.04,129.97,6.1551]
[1718991819323,6.1521,130.04,129.97,29.2951]
[1718991819492,6.1525,130.03,129.97,23.14]
[1718991819675,6.1521,130.04,129.97,29.2952]
[1718991819888,20.0,130.03,129.95,23.14]
[1718991820175,20.0,130.03,129.95,29.2959]
[1718991820176,6.1533,130.02,129.95,29.2959]
[1718991820376,20.0,130.03,129.97,29.2949]
[1718991820589,15.3765,130.07,129.97,29.2949]
[1718991820779,260.4,130.12,130.02,23.14]
[1718991820972,6.1497,130.09,130.02,29.2926]
[1718991821206,20.0,130.08,130.02,29.2926]
[1718991821506,20.0,130.08,130.03,51.4922]
[1718991821801,20.0,130.08,130.03,45.34]
[1718991821981,20.0,130.09,130.03,23.48]
[1718991822186,20.0,130.1,130.04,45.0]
[1718991822427,20.0,130.1,130.05,0.34]
[1718991822596,6.1496,130.09,130.05,0.34]
[1718991823085,6.1501,130.08,130.05,0.34]
[1718991823806,6.1501,130.08,130.04,45.0]
[1718991824705,6.1506,130.07,130.03,0.17]
[1718991824882,6.1506,130.07,130.02,45.34]
[1718991825081,6.1506,130.07,130.02,0.34]
[1718991825282,6.1499,130.09,130.02,29.6328]
[1718991825494,6.1502,130.08,130.03,45.0]
[1718991825695,6.1497,130.09,130.02,6.4926]
[1718991825894,6.15,130.08,130.03,45.0]
[1718991826080,6.15,130.08,130.02,0.34]
[1718991827013,6.15,130.08,130.02,23.48]
[1718991827191,6.15,130.08,130.03,45.0]
[1718991827596,6.15,130.08,130.02,45.34]
[1718991828397,6.15,130.08,130.02,68.48]
[1718991828641,14.2348889,130.13,129.96,6.3014]
[1718991828796,6.1521,130.04,129.97,6.155]
[1718991828995,65.0,130.12,129.96,6.3014]
[1718991829320,6.1512,130.06,129.99,23.14]
[1718991829484,6.1512,130.06,129.99,29.2941]
[1718991829909,6.1512,130.06,130.0,6.3238]
[1718991830103,6.1512,130.06,130.01,45.17]
[1718991830411,6.1503,130.08,130.02,0.17]
[1718991830993,26.1505,130.07,130.02,0.17]
[1718991832509,6.1511,130.06,130.02,0.17]
[1718991833109,26.1507,130.07,130.02,0.17]
[1718991834029,20.0,130.07,129.97,15.3872]
[1718991834197,6.152,130.04,129.98,6.1544]
[1718991834648,6.152,130.04,129.99,23.14]
[1718991834790,6.152,130.04,129.98,6.1544]
[1718991834791,6.1522,130.04,129.97,23.14]
[1718991834994,6.1517,130.05,129.99,23.14]
[1718991835430,6.1517,130.05,130.0,0.17]
[1718991835636,47.360836,130.07,130.01,23.14]
[1718991835932,47.360836,130.07,130.02,0.17]
[1718991836114,6.1511,130.06,130.02,45.34]
[1718991836301,26.1515,130.05,130.02,0.34]
[1718991837234,20.0,130.05,130.02,0.34]
[1718991838540,20.0,130.06,130.02,0.34]
[1718991838900,26.1511,130.06,130.02,0.34]
[1718991839797,20.0,130.06,130.02,0.34]
[1718991839999,20.0,130.06,130.02,29.6327]
[1718991840207,20.0,130.06,130.03,45.0]
[1718991840424,26.151,130.06,130.03,45.0]
[1718991840647,6.1515,130.05,130.02,45.34]
[1718991841449,20.0,130.06,130.02,45.34]
[1718991841646,26.1512,130.06,130.02,45.34]
[1718991841815,20.0,130.06,129.96,6.3014]
[1718991842141,15.3795,130.05,129.96,6.3014]
[1718991842342,20.0,130.04,129.96,29.4414]
[1718991842522,6.1525,130.03,129.97,29.295]
[1718991842717,20.0,130.02,129.97,29.295]
[1718991842950,20.0,130.04,129.97,29.295]
[1718991842951,6.1521,130.04,129.97,29.295]
[1718991843319,20.0,130.03,129.96,29.4414]
[1718991843527,20.0,130.05,129.97,45.17]
[1718991844144,6.1532,130.02,129.97,0.17]
[1718991844349,6.1535,130.01,129.94,38.7059]
[1718991844526,6.1535,130.01,129.94,44.8623]
[1718991845248,6.1535,130.01,129.95,6.156]
[1718991845448,6.153,130.02,129.95,29.296]
[1718991845768,20.0,130.05,129.99,6.1541]
[1718991845985,26.1516,130.05,130.0,45.34]
[1718991846245,26.1516,130.05,130.0,0.34]
[1718991846460,20.0,130.05,130.0,0.34]
[1718991846963,43.238736,130.07,130.0,6.4935]
[1718991847245,21.210236,130.07,130.01,74.2931]
[1718991847454,21.210236,130.07,130.02,0.34]
[1718991847747,21.210236,130.07,130.02,23.48]
[1718991848047,21.210236,130.07,130.03,74.2923]
[1718991848249,21.210236,130.07,130.04,0.34]
[1718991848440,21.210236,130.07,130.04,45.34]
[1718991849334,21.210236,130.07,130.04,74.6317]
[1718991849547,21.210236,130.07,130.05,29.2913]
[1718991849848,21.210236,130.07,130.06,68.48]
[1718991850053,21.210236,130.07,130.06,74.631]
[1718991850729,21.210236,130.07,130.04,23.14]
[1718991851064,21.210236,130.07,130.05,45.34]
[1718991851353,21.210236,130.07,130.05,0.34]
[1718991851537,21.210236,130.07,130.05,6.4913]
[1718991851741,21.210236,130.07,130.06,68.14]
[1718991851976,21.210236,130.07,130.06,68.48]
[1718991853054,21.210236,130.07,130.06,45.34]
[1718991853423,21.210236,130.07,130.06,0.34]
[1718991853829,21.210236,130.07,130.06,0.17]
[1718991854032,21.210236,130.07,130.04,23.14]
[1718991854249,21.210236,130.07,130.05,0.17]
[1718991854451,21.210236,130.07,130.04,0.17]
[1718991855339,21.210236,130.07,130.04,45.17]
[1718991855532,21.210236,130.07,130.05,0.17]
[1718991856452,21.210236,130.07,129.98,22.8478]
[1718991856653,21.210236,130.07,130.0,6.1535]
[1718991856832,27.361136,130.07,130.01,6.1532]
[1718991857032,27.361136,130.07,130.0,6.1538]
[1718991857359,21.210236,130.07,130.01,6.1533]
[1718991857659,27.360936,130.07,130.0,6.1536]
[1718991857867,6.1511,130.06,130.01,45.17]
[1718991858046,20.0,130.05,129.98,22.8478]
[1718991858564,26.1517,130.05,129.98,29.0023]
[1718991858943,20.0,130.05,129.99,6.1542]
[1718991859151,20.0,130.05,130.0,6.1536]
[1718991859347,26.151,130.06,130.01,45.17]
[1718991859559,26.151,130.06,130.02,0.17]
[1718991859796,21.210236,130.07,130.02,0.17]
[1718991860253,21.210236,130.07,130.02,29.4626]
[1718991860448,21.210236,130.07,130.03,45.17]
[1718991860629,21.210236,130.07,130.04,0.17]
[1718991862762,21.210236,130.07,130.04,29.4619]
[1718991862948,21.210236,130.07,130.05,68.31]
[1718991863148,21.210236,130.07,130.06,0.17]
[1718991863546,21.210236,130.07,130.06,29.461]
[1718991863856,21.210236,130.07,130.06,74.631]
[1718991867469,21.210236,130.07,130.05,6.1512]
[1718991867760,21.210236,130.07,130.02,15.4228]
[1718991867972,21.210236,130.07,130.02,30.8045]
[1718991868541,21.210236,130.07,130.04,6.1518]
[1718991868738,21.210236,130.07,130.03,29.2922]
[1718991869051,21.210236,130.07,130.02,29.2927]
[1718991869350,21.210236,130.07,130.04,23.14]
[1718991869558,21.210236,130.07,130.06,29.291]
[1718991870440,21.210236,130.07,130.06,74.631]
[1718991870636,21.210236,130.07,130.06,45.34]
[1718991871075,21.210236,130.07,130.04,29.2916]
[1718991871439,21.210236,130.07,130.0,34.79]
[1718991871656,21.210236,130.07,130.02,6.1525]
[1718991871838,21.210236,130.07,130.03,29.2923]
[1718991872033,21.210236,130.07,130.04,6.1519]
[1718991872248,21.210236,130.07,130.05,45.0]
[1718991873246,21.210236,130.07,130.04,45.17]
[1718991873445,21.210236,130.07,130.05,0.17]
[1718991873859,21.210236,130.07,130.05,23.48]
[1718991874169,21.210236,130.07,130.06,45.0]
[1718991874375,21.210236,130.07,130.06,45.17]
[1718991874665,21.210236,130.07,130.06,45.34]
[1718991876556,21.210236,130.07,130.06,0.34]
[1718991877373,21.210236,130.07,130.06,0.17]
[1718991877867,21.210236,130.07,130.06,51.321]
[1718991878035,21.210236,130.07,130.06,51.491]
[1718991878742,21.210236,130.07,130.06,74.631]
[1718991884770,21.210236,130.07,130.06,68.48]
[1718991884950,21.210236,130.07,130.05,6.1513]
[1718991884951,21.210236,130.07,130.04,23.14]
[1718991885669,21.210236,130.07,130.04,29.2916]
[1718991886275,21.210236,130.07,130.05,45.17]
[1718991886466,21.210236,130.07,130.06,0.17]
[1718991886776,21.210236,130.07,130.03,23.14]
[1718991887270,21.210236,130.07,130.04,6.1519]
[1718991887678,21.210236,130.07,130.03,29.2922]
[1718991887886,21.210236,130.07,130.03,23.14]
[1718991888042,21.210236,130.07,130.03,29.2922]
[1718991888242,21.210236,130.07,130.04,45.34]
[1718991889275,6.151,130.06,130.02,23.14]
[1718991889591,26.860836,130.07,130.01,6.1533]
[1718991889652,26.860836,130.07,130.0,6.1536]
[1718991890081,6.1511,130.06,130.0,6.1536]
[1718991890281,26.860836,130.07,130.0,6.1536]
[1718991890969,6.1511,130.06,129.99,6.1541]
[1718991891374,6.1514,130.05,129.99,6.1541]
[1718991891577,20.710236,130.07,130.0,6.1537]
[1718991892475,6.1518,130.05,129.99,0.17]
[1718991892778,6.1518,130.05,129.99,45.34]
[1718991892979,6.1518,130.05,129.99,51.4942]
[1718991893159,6.1512,130.06,129.99,51.4942]
[1718991893356,26.860836,130.07,130.0,6.1537]
[1718991895077,6.151,130.06,130.0,6.1537]
[1718991896558,6.151,130.06,129.99,74.634]
[1718991897355,20.710236,130.07,130.01,6.153]
[1718991897555,26.861036,130.07,130.02,45.34]
[1718991897779,26.861036,130.07,130.02,0.34]
[1718991898157,20.710236,130.07,130.02,0.34]
[1718991898375,6.1511,130.06,130.01,45.0]
[1718991898775,21.6347,130.05,129.96,23.14]
[1718991898983,20.0,130.04,129.96,23.14]
[1718991899175,6.1529,130.02,129.96,29.2955]
[1718991899486,6.1525,130.03,129.97,6.1551]
[1718991900280,6.1529,130.02,129.93,29.87]
[1718991900596,6.1536,130.01,129.94,6.1564]
[1718991900825,6.1533,130.02,129.95,6.1561]
[1718991901098,20.0,130.04,129.96,6.1553]
[1718991901475,20.0,130.04,129.96,29.2953]
[1718991901967,6.153,130.02,129.96,29.2953]
[1718991902195,21.6347,130.05,129.97,68.48]
[1718991902408,21.6347,130.05,130.0,6.1534]
[1718991902574,21.6347,130.05,130.01,45.34]
[1718991902993,6.1511,130.06,130.01,45.34]
[1718991903408,20.710236,130.07,130.01,45.34]
[1718991903587,6.1514,130.06,130.01,0.34]
[1718991903797,20.710236,130.07,129.95,6.1559]
[1718991903798,6.1531,130.02,129.95,6.1559]
[1718991904004,15.0137,130.04,129.94,6.1564]
[1718991904189,6.1547,129.99,129.92,36.0272]
[1718991904374,20.0,129.98,129.9,15.7739]
[1718991904574,6.1562,129.95,129.89,6.1589]
[1718991904884,6.156,129.96,129.9,23.14]
[1718991905773,15.0137,129.97,129.88,23.14]
[1718991905975,15.0137,129.97,129.87,6.1598]
[1718991905976,6.1566,129.94,129.87,6.1598]
[1718991906313,6.1566,129.94,129.87,29.2998]
[1718991906972,6.1563,129.95,129.88,29.2994]
[1718991907482,6.1563,129.95,129.89,6.1589]
[1718991907998,6.1563,129.95,129.88,29.2994]
[1718991908202,6.1563,129.95,129.89,0.17]
[1718991908918,6.1563,129.95,129.89,0.34]
[1718991909319,6.1563,129.95,129.89,45.34]
[1718991909490,6.1567,129.94,129.89,45.34]
[1718991909685,6.1567,129.94,129.87,6.1598]
[1718991910001,12.7235,129.91,129.84,6.1611]
[1718991910198,6.1586,129.9,129.84,6.1611]
[1718991910401,21.9238,129.9,129.84,6.1611]
[1718991911021,15.7652,129.9,129.85,6.1608]
[1718991911184,15.7652,129.9,129.81,31.8905]
[1718991911385,15.7652,129.9,129.84,6.1612]
[1718991912824,20.0,129.89,129.81,6.1625]
[1718991912989,20.0,129.89,129.77,22.5564462]
[1718991913319,6.1607,129.86,129.79,6.1637]
[1718991914684,35.3977,129.89,129.77,0.8416462]
[1718991914685,15.7806,129.84,129.77,0.8416462]
[1718991914913,6.1621,129.83,129.77,0.8416462]
[1718991915491,6.1625,129.82,129.77,0.8416462]
[1718991917241,31.1845,129.84,129.77,0.8416462]
[1718991917444,6.1635,129.8,129.77,0.8416462]
[1718991917659,6.1628,129.81,129.77,0.8416462]
[1718991917950,20.0,129.83,129.77,0.8416462]
[1718991918144,6.1625,129.82,129.77,0.8416462]
[1718991918323,14.20591553,129.82,129.77,0.8416462]
[1718991918523,26.1628,129.81,129.77,0.8416462]
[1718991918719,6.1634,129.8,129.77,0.8416462]
[1718991919573,26.1629,129.81,129.77,0.8416462]
[1718991920440,6.1635,129.8,129.77,0.8416462]
[1718991920826,6.1641,129.79,129.77,0.8416462]
[1718991921333,36.2122,129.78,129.71,6.1674]
[1718991921551,14.43351553,129.82,129.73,15.2058]
[1718991921784,8.04341553,129.82,129.81,6.1628]
[1718991921931,22.6023,129.85,129.76,23.14]
[1718991922120,27.8666339,129.9,129.82,6.1623]
[1718991922353,21.7405,129.9,129.77,23.14]
[1718991922532,6.1614,129.84,129.77,29.3045]
[1718991922737,21.7405,129.9,129.79,23.14]
[1718991923040,6.1602,129.87,129.8,51.333]
[1718991923250,6.1602,129.87,129.8,6.333]
[1718991923464,6.1602,129.87,129.81,45.0]
[1718991923765,21.7405,129.9,129.82,0.34]
[1718991923942,6.1596,129.88,129.81,51.1627]
[1718991924259,6.1595,129.88,129.81,51.1625]
[1718991924483,20.0,129.87,129.81,51.1625]
[1718991924669,26.16,129.87,129.81,45.0]
[1718991924854,20.0,129.87,129.81,6.1625]
[1718991925059,20.0,129.87,129.82,45.17]
[1718991925262,20.0,129.87,129.82,51.3322]
[1718991925469,20.0,129.87,129.28,99.1128148]
[1718991925470,15.4001,129.87,129.75,16.3295]
[1718991925644,20.0,129.86,129.76,45.34]
[1718991925847,35.3997,129.88,129.75,16.3295]
[1718991926061,6.1611,129.85,129.78,6.1642]
[1718991926451,6.1606,129.86,129.79,6.1638]
[1718991926747,20.0,129.85,129.8,6.1632]
[1718991927263,20.0,129.85,129.79,6.1636]
[1718991927778,20.0,129.85,129.8,45.34]
[1718991928140,21.7405,129.9,129.8,68.48]
[1718991928341,21.7405,129.9,129.84,6.1611]
[1718991928548,27.8993,129.9,129.83,29.6418]
[1718991928774,27.8993,129.9,129.84,45.17]
[1718991931276,8.04335078,129.91,129.87,23.14]
[1718991931438,22.8443,129.94,129.88,51.4993]
[1718991931641,29.001,129.94,129.88,51.4993]
[1718991931840,6.3954,129.97,129.88,68.48]
[1718991932066,6.1564,129.95,129.88,74.639]
[1718991932250,6.3954,129.97,129.85,23.14]
[1718991932454,6.3954,129.97,129.86,68.48]
[1718991932657,6.1575,129.93,129.86,68.48]
[1718991933148,6.1575,129.93,129.86,74.6403]
[1718991933657,6.1579,129.92,129.86,0.17]
[1718991934155,6.1567,129.94,129.87,29.2999]
[1718991934478,20.0,129.96,129.9,6.1585]
[1718991934719,12.551,129.97,129.91,6.1579]
[1718991935253,6.3954,129.97,129.92,45.0]
[1718991935493,6.3954,129.97,129.91,45.0]
[1718991935677,6.3954,129.97,129.92,0.34]
[1718991936273,6.3954,129.97,129.92,6.4974]
[1718991936472,6.3954,129.97,129.92,0.34]
[1718991936863,16.4489,129.98,129.92,6.4975]
[1718991937095,6.1545,129.99,129.93,51.157]
[1718991937395,6.1455,130.0,129.94,51.3264]
[1718991937756,6.4016,130.03,129.96,6.1554]
[1718991938184,6.1529,130.02,129.96,6.1554]
[1718991938401,6.1536,130.01,129.95,0.17]
[1718991939306,6.1539,130.0,129.94,45.17]
[1718991939486,6.1535,130.01,129.94,51.3266]
[1718991939898,21.7827,130.03,129.94,51.3266]
[1718991939899,6.1529,130.02,129.94,68.31]
[1718991940083,6.1529,130.02,129.95,0.17]
[1718991940898,6.1529,130.02,129.95,6.326]
[1718991941101,6.1529,130.02,129.96,45.0]
[1718991941486,6.1535,130.01,129.96,45.0]
[1718991941835,6.4016,130.03,129.95,45.0]
[1718991941975,6.1535,130.01,129.95,45.0]
[1718991942178,6.1535,130.01,129.95,51.156]
[1718991943509,6.1529,130.02,129.96,6.3257]
[1718991943706,6.1529,130.02,129.96,0.17]
[1718991943874,6.1534,130.01,129.95,45.0]
[1718991944078,6.1536,130.01,129.95,51.1561]
[1718991944279,6.1531,130.02,129.95,51.1561]
[1718991944507,6.1531,130.02,129.96,6.1556]
[1718991945111,12.5542,130.03,129.96,6.1556]
[1718991945285,20.0,130.02,129.96,6.1556]
[1718991945687,6.1529,130.02,129.96,6.1556]
[1718991946081,14.18494617,130.05,129.98,6.1545]
[1718991946282,6.1519,130.04,129.98,6.1545]
[1718991946501,15.3777,130.06,129.97,22.711]
[1718991946808,6.1525,130.03,129.97,22.711]
[1718991947181,6.153,130.02,129.97,16.304]
[1718991947485,289.14394432,130.07,129.94,22.371]
[1718991947697,6.1532,130.02,129.95,6.1559]
[1718991947921,6.1532,130.02,129.95,6.1558]
[1718991948100,45.0,130.06,129.97,6.1548]
[1718991948312,6.1521,130.04,129.97,6.1548]
[1718991948480,6.1525,130.03,129.97,6.1548]
[1718991948677,304.52114432,130.07,129.97,6.1548]
[1718991948678,20.0,130.02,129.97,6.1549]
[1718991948909,20.0,130.02,129.96,23.48]
[1718991949088,20.0,130.02,129.97,45.17]
[1718991949285,20.0,130.03,129.97,45.17]
[1718991949476,20.0,130.05,129.97,45.17]
[1718991949680,6.1526,130.03,129.97,45.17]
[1718991949898,20.0,130.05,129.99,6.154]
[1718991950589,20.0,130.05,130.0,6.1538]
[1718991951124,20.710236,130.07,130.06,6.151]
[1718991951219,20.710236,130.07,130.05,6.1513]
[1718991951626,20.710236,130.07,130.06,45.0]
[1718991951788,20.710236,130.07,130.04,23.48]
[1718991952112,20.710236,130.07,130.04,0.34]
[1718991952315,20.710236,130.07,130.04,51.4918]
[1718991953012,20.710236,130.07,130.0,23.14]
[1718991953206,20.710236,130.07,130.02,51.4928]
[1718991954541,20.710236,130.07,130.03,6.1522]
[1718991954745,20.710236,130.07,130.04,45.17]
[1718991954917,20.710236,130.07,130.02,6.3227]
[1718991955113,20.710236,130.07,130.01,52.5703]
[1718991955644,20.710236,130.07,130.01,16.1334]
[1718991955943,26.861036,130.07,130.01,16.1334]
[1718991956120,20.710236,130.07,130.01,16.1334]
[1718991957036,20.710236,130.07,130.01,39.2734]
[1718991957225,20.710236,130.07,130.02,45.34]
[1718991957539,20.710236,130.07,130.02,45.17]
[1718991957740,20.710236,130.07,130.02,51.1528]
[1718991958112,20.710236,130.07,130.02,45.0]
[1718991958526,20.710236,130.07,130.02,51.1528]
[1718991958836,20.710236,130.07,130.02,45.0]
[1718991959026,20.710236,130.07,130.02,51.1528]
[1718991960131,20.710236,130.07,130.03,6.1523]
[1718991960434,20.710236,130.07,130.02,68.14]
[1718991960747,20.710236,130.07,130.06,6.151]
[1718991961347,20.710236,130.07,130.06,74.461]
[1718991961545,20.710236,130.07,130.06,74.631]
[1718991962429,20.710236,130.07,130.06,90.0085]
[1718991962649,0.8416462,130.09,130.08,29.29]
[1718991962835,0.8416462,130.09,130.08,104.47]
[1718991963645,0.8416462,130.09,130.08,74.63]
[1718991965062,0.8416462,130.09,130.08,51.49]
[1718991965364,0.8416462,130.09,130.04,6.4956]
[1718991966362,0.8416462,130.09,130.08,6.15]
[1718991966534,0.8416462,130.09,130.07,6.1503]
[1718991966736,0.8416462,130.09,130.08,45.34]
[1718991966940,0.8416462,130.09,130.08,51.49]
[1718991967378,0.8416462,130.09,130.08,74.61]
[1718991967763,0.8416462,130.09,130.08,51.49]